Cogmind - Beta 9.4 @@@ ROGUE MODE // 2020.01.19 @ 22:14:28 Player: Cookie Result: Self-destructed Performance ------------- Evolutions (1) 500 Regions Visited (3) 600 Robots Destroyed (10) 50 Value Destroyed (159) 159 Prototype IDs (2) 40 Alien Tech Used (0) 0 Bonus (0) 0 TOTAL SCORE: 1349 Bonus ------- None Cogmind --------- Core Integrity 248/400 Matter 275/300 Energy 1/100 System Corruption 0% Temperature Cool (4) Movement Flying (37) Location -9/Materials Parts ------- > --- POWER (1) -------- (None) > --- PROPULSION (3) --- Flight Unit Flight Unit > --- UTILITY (3) ------ Small Storage Unit Signal Interpreter > --- WEAPON (2) ------- (None) > --- INVENTORY (6) ---- (None) Peak State ------------ > --- POWER ------------ Light Ion Engine > --- PROPULSION ------- Wheel Compact Wheel > --- UTILITY ---------- Small Storage Unit Signal Interpreter ECM Suite > --- WEAPON ----------- Beam Rifle Assault Rifle > --- INVENTORY -------- Flight Unit Flight Unit [Rating: 9] Favorites ----------- Power Light Ion Engine Engine Light Ion Engine Propulsion Wheel Wheel Wheel Flight Unit Flight Unit Utility Small Storage Unit Device ECM Suite Storage Small Storage Unit Processor Signal Interpreter Weapon Assault Rifle Energy Gun EM Pulse Gun Ballistic Gun Assault Rifle Build | -11 -10 -10 -9 ------- Run | Scr Mat Min Mat Slots Evolved 2 | . . . 2 Power . | . . . . Propulsion 1 | . . . 1 Utility 1 | . . . 1 Weapon . | . . . . Parts Attached 14 | 6 1 1 6 Power 2 | 1 . 1 . Engine 2 | 1 . 1 . Core . | . . . . Reactor . | . . . . Propulsion 5 | 2 . . 3 Treads . | . . . . Leg . | . . . . Wheel 2 | 2 . . . Hover . | . . . . Flight 3 | . . . 3 Utility 3 | 1 1 . 1 Device 1 | . . . 1 Storage 1 | 1 . . . Processor 1 | . 1 . . Hackware . | . . . . Protection . | . . . . Artifact . | . . . . Weapon 4 | 2 . . 2 Energy Gun 3 | 1 . . 2 Energy Cannon . | . . . . Ballistic Gun 1 | 1 . . . Ballistic Cannon . | . . . . Launcher . | . . . . Special Weapon . | . . . . Impact Weapon . | . . . . Slashing Weapon . | . . . . Piercing Weapon . | . . . . Special Melee Weapon . | . . . . Unidentified Prototypes . | . . . . Parts Lost 9 | . . 1 8 Power 2 | . . 1 1 Propulsion 3 | . . . 3 Utility 1 | . . . 1 Weapon 3 | . . . 3 Highest Loss Streak 8 | . . 1 8 Average Slot Usage (%) 90 | . 97 99 83 Engine 11 | . 14 13 10 Wheel 24 | . 28 28 20 Device 4 | . . . 9 Storage 12 | . 14 14 11 Processor 11 | . 11 14 11 Energy Gun 12 | . 14 14 10 Ballistic Gun 11 | . 14 14 9 Naked Turns . | . . . . Heaviest Build 13 | 13 13 13 13 Greatest Support 26 | 26 26 26 26 Greatest Overweight (x) 1 | . . . 1 Average Overweight (x) . | . . . . Largest Inventory Capacity 6 | 6 6 6 6 Average Capacity 5 | 4 6 6 6 Most Carried 3 | 2 1 2 3 Average Carried 1 | . . 1 2 Final Capacity 6 | 6 6 6 6 Final Carried 2 | . . 2 . Class Distribution -------------------- 100% | Mutant Dominant Class ---------------- Mutant | -10/Materials Mutant | -10/Mines Mutant | -9/Materials Resources | -11 -10 -10 -9 ----------- Run | Scr Mat Min Mat Matter Collected 309 | 224 . 20 65 Remotely . | . . . . Salvage Created 243 | . . 59 184 Parts 21 | . . 7 14 Haulers Intercepted . | . . . . Recyclers Shooed . | . . . . Parts Field Recycled . | . . . . Retrieved Matter . | . . . . Parts Self-Destructed . | . . . . Prevented . | . . . . Kills | -11 -10 -10 -9 ------- Run | Scr Mat Min Mat Combat Hostiles Destroyed 9 | . . 3 6 Guns 9 | . . 3 6 Classes Destroyed 3 | . . 1 2 Worker 1 | . . . 1 Swarmer 7 | . . 3 4 Grunt 2 | . . . 2 Best Kill Streak 7 | . . 3 7 Combat Bots Only 6 | . . 3 6 Max Kills in Single Turn 2 | . . 2 2 Gunslinging 1 | . . 1 1 Exploded . | . . . . Melee . | . . . . Uniques/NPCs Destroyed . | . . . . Combat | -11 -10 -10 -9 -------- Run | Scr Mat Min Mat Damage Taken 771 | . 28 237 506 Core 253 | . . 101 152 Absorbed by Shields . | . . . . Core Remaining (%) 79 | 100 . 59 . Volleys Fired 17 | . . 6 11 Largest 2 | . . 2 2 Hottest 96 | . . 60 96 Shots Fired 32 | . . 12 20 Gun 32 | . . 12 20 Cannon . | . . . . Launcher . | . . . . Special . | . . . . Kinetic 11 | . . 6 5 Thermal 9 | . . . 9 Explosive . | . . . . Electromagnetic 12 | . . 6 6 Robot Hit Streak 4 | . . 4 4 Robot Miss Streak 3 | . . 2 3 Penetration Max . | . . . . Secondary Targets 4 | . . 1 3 Max Gunslinging Chain 1 | . . 1 1 Shots Hit Robots 15 | . . 6 9 Core Hits 11 | . . 3 8 Critical Hits . | . . . . Critical Kills . | . . . . Critical Parts Destroyed . | . . . . Melee Attacks . | . . . . Impact . | . . . . Slashing . | . . . . Piercing . | . . . . Sneak Attacks . | . . . . Combat Hostiles . | . . . . Follow-up Attacks . | . . . . Damage Inflicted 284 | . . 80 204 Guns 284 | . . 80 204 Cannons . | . . . . Explosions . | . . . . Melee . | . . . . Ramming . | . . . . Kinetic 78 | . . 35 43 Thermal 85 | . . . 85 Explosive . | . . . . Electromagnetic 121 | . . 45 76 Impact . | . . . . Slashing . | . . . . Piercing . | . . . . Highest Corruption . | . . . . Average Corruption . | . . . . Corruption Purged . | . . . . Overload Shots . | . . . . Overflow Damage . | . . . . Projectiles . | . . . . Explosions . | . . . . Melee . | . . . . Knockbacks . | . . . . Impact . | . . . . Kinetic . | . . . . Secondary . | . . . . Self-Inflicted Damage . | . . . . Shots . | . . . . Rammed . | . . . . Targets Rammed . | . . . . Kicked . | . . . . Crushed . | . . . . Highest Temperature 198 | . . . 198 Average Temperature 100 | . . . 100 Received Heat Transfer 207 | . 15 . 192 Siege Activations . | . . . . Robots Corrupted . | . . . . Combat Hostiles . | . . . . Parts Fried . | . . . . Impact Corruptions . | . . . . Robots Melted . | . . . . Combat Hostiles . | . . . . Parts Melted 1 | . . . 1 Heat Transferred 222 | . . . 222 Parts Sabotaged . | . . . . Parts Stolen . | . . . . Parts Stripped . | . . . . Power Chain Reactions . | . . . . Missiles Intercepted . | . . . . Alert | -11 -10 -10 -9 ------- Run | Scr Mat Min Mat Peak Influence 151 | . 13 94 151 Average Influence 41 | . 10 74 45 Maximum Alert Level . | . . . . Low Security (%) 100 | 100 100 100 100 Level 1 . | . . . . Level 2 . | . . . . Level 3 . | . . . . Level 4 . | . . . . Level 5 . | . . . . High Security . | . . . . Max Security . | . . . . Squads Dispatched . | . . . . Investigation . | . . . . Extermination . | . . . . Reinforcement . | . . . . Assault . | . . . . Garrison . | . . . . Intercept . | . . . . Construction Impeded . | . . . . Haulers Reinforced . | . . . . Stealth | -11 -10 -10 -9 --------- Run | Scr Mat Min Mat Distress Signals 1 | . 1 . . Communications Jammed . | . . . . Distress Signals . | . . . . Times Spotted 33 | . 5 18 10 Peak Tracking Total 18 | . 3 18 8 Tactical Retreats 3 | . 1 . 2 Traps | -11 -10 -10 -9 ------- Run | Scr Mat Min Mat Traps Triggered . | . . . . Indirectly . | . . . . Trap Hack Attempts . | . . . . Triggered . | . . . . Disarmed . | . . . . Reprogrammed . | . . . . Reused . | . . . . Traps Extracted . | . . . . Installed . | . . . . Triggered . | . . . . Machines | -11 -10 -10 -9 ---------- Run | Scr Mat Min Mat Machines Disabled 2 | . . 2 . Max in Single Turn 1 | . . 1 . Machines Sabotaged . | . . . . Garrisons Compromised . | . . . . Overloaded Fab Kills . | . . . . Fab Network Shutdowns . | . . . . Hacking | -11 -10 -10 -9 --------- Run | Scr Mat Min Mat Machines Accessed 2 | . 2 . . Terminals 2 | . 2 . . Fabricators . | . . . . Repair Stations . | . . . . Recycling Units . | . . . . Scanalyzers . | . . . . Garrison Access . | . . . . Total Hacks 4 | . 4 . . Successful 2 | . 2 . . Failed 2 | . 2 . . Catastrophic . | . . . . Database Lockouts . | . . . . Manual 1 | . 1 . . Terminals 4 | . 4 . . Fabricators . | . . . . Repair Stations . | . . . . Recycling Units . | . . . . Scanalyzers . | . . . . Garrison Access . | . . . . Terminal Hacks 2 | . 2 . . Prototype ID Bank 1 | . 1 . . Branch Access Points 1 | . 1 . . Fabricator Hacks . | . . . . Repair Station Hacks . | . . . . Recycling Unit Hacks . | . . . . Scanalyzer . | . . . . Garrison Access Hacks . | . . . . Unauthorized Hacks . | . . . . Terminals . | . . . . Fabricators . | . . . . Repair Stations . | . . . . Recycling Units . | . . . . Scanalyzers . | . . . . Garrison Access . | . . . . Data Cores Recovered . | . . . . Used . | . . . . Hacking Detections 2 | . 2 . . Full Trace Events . | . . . . Feedback Events . | . . . . Feedback Blocked . | . . . . Robot Schematics Acquired . | . . . . Robots Built . | . . . . Matter . | . . . . Time . | . . . . Total Robot Build Rating . | . . . . Part Schematics Acquired . | . . . . Parts Built . | . . . . Matter . | . . . . Time . | . . . . Total Part Build Rating . | . . . . Parts Repaired . | . . . . Time . | . . . . Parts Recycled . | . . . . Recycled Matter . | . . . . Retrieved Matter . | . . . . Retrieved Components . | . . . . Parts Scanalyzed . | . . . . Part Schematics Acquired . | . . . . Parts Damaged . | . . . . Bothacking | -11 -10 -10 -9 ------------ Run | Scr Mat Min Mat Used RIF Installer . | . . . . Robots Hacked . | . . . . Non-combat . | . . . . Combat . | . . . . Robot Hacks Applied . | . . . . Relay Couplers Released . | . . . . Robots Rewired . | . . . . Allies Hacked . | . . . . Hacks Repelled . | . . . . Allies | -11 -10 -10 -9 -------- Run | Scr Mat Min Mat Total Allies . | . . . . Largest Group . | . . . . Highest-Rated Group . | . . . . Highest-Rated Ally . | . . . . Total Orders . | . . . . Ally Attacks . | . . . . Total Damage . | . . . . Kills . | . . . . Allies Corrupted . | . . . . Allies Melted . | . . . . Intel | -11 -10 -10 -9 ------- Run | Scr Mat Min Mat Robot Analysis Total . | . . . . Derelict Logs Recovered . | . . . . Drone Launches . | . . . . Drone Recoveries . | . . . . Exploration | -11 -10 -10 -9 ------------- Run | Scr Mat Min Mat Turns Passed 644 | 45 131 151 317 Spaces Moved 353 | 38 81 142 92 Core 4 | 3 . . 1 Treads . | . . . . Legs . | . . . . Wheels 344 | 35 81 142 86 Hover . | . . . . Flight 5 | . . . 5 Fastest Speed 37 | 50 90 90 37 Average Speed 88 | 86 90 90 87 Slowest Speed 100 | 90 90 90 100 Overloaded Moves . | . . . . Propulsion Burnouts . | . . . . Robots Hopped . | . . . . Cave-ins Triggered . | . . . . Exploration Rate (%) 16 | 3 24 31 9 Regions Visited 3 Branch Regions 1 Pre-discovered Areas . | . . . . Known Exits Taken 2 | . 1 1 . Unknown Exits Taken 1 | 1 . . . Scrap Searched . | . . . . Spaces Dug . | . . . . Terrain Destroyed . | . . . . Melee . | . . . . Projectile . | . . . . AOE . | . . . . Actions | -11 -10 -10 -9 --------- Run | Scr Mat Min Mat Total 649 | 49 138 153 309 Wait 253 | . 56 2 195 Move 350 | 37 80 141 92 Hop . | . . . . Pick Up 14 | 6 1 3 4 Fast Attach . | . . . . Attach 14 | 6 1 1 6 Detach . | . . . . Swap . | . . . . Drop 1 | . . . 1 Fire 17 | . . 6 11 Melee . | . . . . Ram . | . . . . Kick . | . . . . Crush . | . . . . Escape Stasis . | . . . . Rewire . | . . . . Trap . | . . . . Miscellaneous . | . . . . Route ------- -11/Scrapyard -10/Materials (discovered 2 exits: *Min x2) -10/Mines -9/Materials History --------- Turn | Location | Event 18 | -11/Scrapyard | Discovered new exit (range 15) 46 | -11/Scrapyard | Entered Materials 74 | -10/Materials | Identified exit to Mines 177 | -10/Materials | Entered Mines 194 | -10/Mines | Met a Derelict bent on vengeance 261 | -10/Mines | Discovered new exit (range 6) 268 | -10/Mines | Identified exit to Materials 302 | -10/Mines | Assembled infested the area 307 | -10/Mines | Assisted by a Guerilla fighting off Assembled 318 | -10/Mines | Build established: Mutant 328 | -10/Mines | Entered Materials 328 | -9/Materials | Evolved 2 slots: Propulsion x1, Utility x1 645 | -9/Materials | Self-destructed Last Messages --------------- 00620_ R-06 Scavenger collects Lgt. Assault Rifle. 00622_ R-06 Scavenger collects Heat Sink. 00622_ K-01 Serf destroyed. 00624_ Lgt. Ion Engine destroyed. 00626_ R-06 Scavenger inserts Flight Unit into recycling unit. 00628_ R-06 Scavenger collects Lgt. Ion Engine. 00628_ Beam Rifle destroyed. 00628_ ECM Suite destroyed. 00629_ R-06 Scavenger inserts Lgt. Assault Rifle into recycling unit. 00630_ Wheel destroyed. 00631_ EM Pulse Gun destroyed. 00632_ R-06 Scavenger collects Flight Unit. 00632_ R-06 Scavenger inserts Aluminum Leg into recycling unit. 00635_ R-06 Scavenger collects Lgt. Assault Rifle. 00635_ R-06 Scavenger inserts Lgt. Assault Rifle into recycling unit. 00635_ Acquired Flight Unit. 00638_ R-06 Scavenger collects Sml. Laser. 00639_ R-06 Scavenger collects Lgt. Ion Engine. 00640_ Flight Unit destroyed. 00641_ R-06 Scavenger inserts Sml. Laser into recycling unit. Map ----- +----------------------------------------------------+ | ??????????????????????????????????????????? | | ??????????????????????????????????????????? | | ??????????????????????????????????????????? | | ?????????????????????????????##########???? | | ?????????????????????????????# #???? | | ?????????????????????????##### """ #???? | | ?????????????????????????# # """ #???? | | ?????????????????????????# # """ #???? | | ?????????????????????????# # | #???? | | ?????????????????????????# + """ #???? | | ?????????????????????????# # """ #???? | | ?????????????????????????# # """ #???? | | ?????????????????????????# # #???? | | ????????????? ???????????# ###########??? | | ????????????? ???????????# # #??? | | ????????????? ???????????# # #??? | | ????????????? ???????????# # #??? | | ?????????????# ??????????# # #??? | | ?????????????# ??????????# + #??? | | ?????????????# ??????????# # #??? | | ?????????????# ??????????### # #??? | | ?????????????# ????????????# # #??? | | ????????????## ##########??# #####+#####??? | | ????????????# #= #??# #?# #????? | | ????????????# #% rr ####u### #????? | | ????????????# +%rg"Y" /@ #????? | | ????????????# #%Y """ ######## g #????? | | ????????????# #% #??????# #????? | | ????????????# #########??????### ###????? | | ????????????# #????????????????# #??????? | | ????????????# #???????????????? /??????? | | ????????????#" #???????????????? #??????? | | ????????????#%" ??????????????? #??????? | | ???????????? " ??????????????? #??????? | | ???????????? ?????????????? #??????? | | ???????????? ?????????????? ???????? | | ???????????###+##????????????? ???????? | | ??????????????????????????????#+##+???????? | | ??????????????????????????????????????????? | | ??????????????????????????????????????????? | | ??????????????????????????????????????????? | | ??????????????????????????????????????????? | | ??????????????????????????????????????????? | | ??????????????????????????????????????????? | | ??????????????????????????????????????????? | | ??????????????????????????????????????????? | | ??????????????????????????????????????????? | | ??????????????????????????????????????????? | | ??????????????????????????????????????????? | | ??????????????????????????????????????????? | +----------------------------------------------------+ Best States ------------- Heat Dissipation 28 Energy Generation 10 Energy Capacity 250 Matter Stores 296 Matter Capacity 300 Sight Range 16 Terrain Scan Density 10 ECM Strength 1 Evasion (%) 49 Item Schematics ----------------- None Robot Schematics ------------------ None Fabricated ------------ Nothing Alien Tech Used ----------------- None Achievements -------------- None Challenges ------------ None Game ------ Seed SmallLinkedApparatus Manual? 0 Play Time 00:10:14 Cumulative 42.8 hours Start 2020.01.19 @ 22:05:33 End 2020.01.19 @ 22:14:28 Sessions 1 Manual Loads 0 Difficulty Rogue Special Mode None Game No. 68 Rogue 68 Adventurer 0 Explorer 0 Win Type - Total 1 Types 1/0/0/0/0/0/0 Lore% 32 Gallery% 35 Achievement% 30 Wizard Run 0 Options --------- ASCII 0 Keyboard 0 Movement Mouse Keybinds 0 Fullscreen 1 Font 18/SmallcapsGlow Map View 76x50 Tactical HUD 1 Map Filters NONE Filters NONE Steam 1 RUN: 49733419-57a3-4dbb-b7a4-ffc9e0ba5236